[Event "Titled Tuesday Blitz December 27 Late 2022"]
[White "Gasanov, Eldar"]
[Black "Jaracz, Pawel"]
[WhiteFideId "14104466"]
[BlackFideId "1102222"]
[WhiteElo "2481"]
[BlackElo "2467"]
[Result "0-1"]
[Round "07"]
[TimeControl "180+2"]
[Date "2022.12.27"]
[WhiteClock "0:00:02"]
[BlackClock "0:00:13"]

1. d4 {[%clk 0:02:59]}  Nf6 {[%clk 0:02:58]} 2. c4 {[%clk 0:03:00]}  e6 {[%clk 0:02:57]} 3. Nf3 {[%clk 0:02:59]}  b6 {[%clk 0:02:52]} 4. Bf4 {[%clk 0:02:57]}  Bb4+ {[%clk 0:02:51]} 5. Nbd2 {[%clk 0:02:54]}  Bb7 {[%clk 0:02:50]} 6. e3 {[%clk 0:02:52]}  O-O {[%clk 0:02:45]} 7. Bd3 {[%clk 0:02:47]}  Be7 {[%clk 0:02:39]} 8. e4 {[%clk 0:02:42]}  d6 {[%clk 0:02:20]} 9. h3 {[%clk 0:02:27]}  Nc6 {[%clk 0:02:11]} 10. Be3 {[%clk 0:02:19]}  Nb4 {[%clk 0:01:26]} 11. Bb1 {[%clk 0:02:18]}  d5 {[%clk 0:01:25]} 12. cxd5 {[%clk 0:02:15]}  exd5 {[%clk 0:01:25]} 13. e5 {[%clk 0:02:14]}  Ne4 {[%clk 0:01:25]} 14. a3 {[%clk 0:02:06]}  Nxd2 {[%clk 0:00:59]} 15. Qxd2 {[%clk 0:01:59]}  Nc6 {[%clk 0:00:59]} 16. b4 {[%clk 0:01:48]}  a5 {[%clk 0:00:57]} 17. b5 {[%clk 0:01:47]}  Na7 {[%clk 0:00:56]} 18. O-O {[%clk 0:01:42]}  Qd7 {[%clk 0:00:51]} 19. a4 {[%clk 0:01:37]}  c6 {[%clk 0:00:51]} 20. bxc6 {[%clk 0:01:24]}  Nxc6 {[%clk 0:00:50]} 21. Bd3 {[%clk 0:01:09]}  Nb4 {[%clk 0:00:50]} 22. Bb5 {[%clk 0:01:09]}  Bc6 {[%clk 0:00:50]} 23. Bxc6 {[%clk 0:01:09]}  Qxc6 {[%clk 0:00:50]} 24. Rfc1 {[%clk 0:01:07]}  Qd7 {[%clk 0:00:50]} 25. Nh2 {[%clk 0:00:58]}  Rfc8 {[%clk 0:00:49]} 26. Ng4 {[%clk 0:00:57]}  Qf5 {[%clk 0:00:48]} 27. Qe2 {[%clk 0:00:53]}  Rc2 {[%clk 0:00:23]} 28. Qb5 {[%clk 0:00:16]}  h5 {[%clk 0:00:22]} 29. Nh2 {[%clk 0:00:08]}  Rac8 {[%clk 0:00:22]} 30. Rxc2 {[%clk 0:00:07]}  Nxc2 {[%clk 0:00:20]} 31. Rf1 {[%clk 0:00:07]}  Qe6 {[%clk 0:00:19]} 32. Nf3 {[%clk 0:00:07]}  Nb4 {[%clk 0:00:18]} 33. Kh2 {[%clk 0:00:04]}  Rc4 {[%clk 0:00:18]} 34. Nd2 {[%clk 0:00:04]}  Rc8 {[%clk 0:00:16]} 35. Nf3 {[%clk 0:00:05]}  Qc6 {[%clk 0:00:16]} 36. Qe2 {[%clk 0:00:04]}  Qc4 {[%clk 0:00:14]} 37. Qd1 {[%clk 0:00:03]}  Qd3 {[%clk 0:00:14]} 38. Qe1 {[%clk 0:00:01]}  Nc2 {[%clk 0:00:14]} 39. Qc1 {[%clk 0:00:02]}  Ba3 {[%clk 0:00:13]} 40. Qb1 {[%clk 0:00:02]}  Nb4 {[%clk 0:00:13]} 0-1


[Site "https://www.chess.com"]

[Event "Titled Tuesday Blitz December 27 Late 2022"]
[White "Gascon Del Nogal, Jose Rafael"]
[Black "Domingo Nunez, Ruben"]
[WhiteFideId "3902463"]
[BlackFideId "22245570"]
[WhiteElo "2459"]
[BlackElo "2416"]
[Result "0-1"]
[Round "07"]
[TimeControl "180+2"]
[Date "2022.12.27"]
[WhiteClock "0:00:11"]
[BlackClock "0:00:19"]

1. e4 {[%clk 0:03:00]}  g6 {[%clk 0:02:53]} 2. d4 {[%clk 0:03:00]}  Bg7 {[%clk 0:02:54]} 3. Nf3 {[%clk 0:02:59]}  c6 {[%clk 0:02:54]} 4. h3 {[%clk 0:02:58]}  d5 {[%clk 0:02:55]} 5. exd5 {[%clk 0:02:54]}  cxd5 {[%clk 0:02:56]} 6. Bd3 {[%clk 0:02:54]}  Nc6 {[%clk 0:02:56]} 7. c3 {[%clk 0:02:53]}  Nh6 {[%clk 0:02:56]} 8. O-O {[%clk 0:02:48]}  O-O {[%clk 0:02:56]} 9. Re1 {[%clk 0:02:48]}  Bf5 {[%clk 0:02:54]} 10. Bxh6 {[%clk 0:02:28]}  Bxh6 {[%clk 0:02:55]} 11. Bxf5 {[%clk 0:02:28]}  gxf5 {[%clk 0:02:56]} 12. Qd3 {[%clk 0:02:25]}  e6 {[%clk 0:02:56]} 13. c4 {[%clk 0:02:25]}  Rc8 {[%clk 0:02:24]} 14. cxd5 {[%clk 0:01:21]}  Nb4 {[%clk 0:02:22]} 15. Qb3 {[%clk 0:01:21]}  Nc2 {[%clk 0:02:17]} 16. Nc3 {[%clk 0:01:17]}  Nxa1 {[%clk 0:02:18]} 17. Rxa1 {[%clk 0:01:17]}  Qb6 {[%clk 0:02:18]} 18. Qc2 {[%clk 0:01:11]}  Bg7 {[%clk 0:02:09]} 19. Rd1 {[%clk 0:01:04]}  Rfd8 {[%clk 0:02:07]} 20. Rd2 {[%clk 0:01:01]}  Bh6 {[%clk 0:01:18]} 21. Rd3 {[%clk 0:00:46]}  Qa6 {[%clk 0:01:06]} 22. Qd1 {[%clk 0:00:40]}  Qb6 {[%clk 0:01:02]} 23. Ne5 {[%clk 0:00:35]}  Bg7 {[%clk 0:01:01]} 24. Rg3 {[%clk 0:00:34]}  f6 {[%clk 0:00:38]} 25. Nf3 {[%clk 0:00:15]}  Qxb2 {[%clk 0:00:39]} 26. Nh4 {[%clk 0:00:15]}  Rxc3 {[%clk 0:00:37]} 27. Rxc3 {[%clk 0:00:14]}  Qxc3 {[%clk 0:00:37]} 28. dxe6 {[%clk 0:00:15]}  Rxd4 {[%clk 0:00:35]} 29. Qe2 {[%clk 0:00:14]}  Re4 {[%clk 0:00:20]} 30. Qh5 {[%clk 0:00:13]}  Qc1+ {[%clk 0:00:18]} 31. Kh2 {[%clk 0:00:13]}  Qf4+ {[%clk 0:00:19]} 32. Kg1 {[%clk 0:00:11]}  Re1# {[%clk 0:00:19]} 0-1


[Site "https://www.chess.com"]

[Event "Titled Tuesday Blitz December 27 Late 2022"]
[White "Gatterer, Florian"]
[Black "Clawitter, Craig"]
[WhiteFideId "811688"]
[BlackFideId "2023105"]
[WhiteElo "2170"]
[BlackElo "2050"]
[Result "1-0"]
[Round "07"]
[TimeControl "180+2"]
[Date "2022.12.27"]
[WhiteClock "0:00:49"]
[BlackClock "0:00:01"]

1. b3 {[%clk 0:03:00]}  e5 {[%clk 0:02:27]} 2. Bb2 {[%clk 0:03:00]}  Nc6 {[%clk 0:02:26]} 3. e3 {[%clk 0:03:01]}  Nf6 {[%clk 0:02:24]} 4. Nf3 {[%clk 0:03:01]}  e4 {[%clk 0:02:20]} 5. Nd4 {[%clk 0:03:01]}  Be7 {[%clk 0:02:12]} 6. Nf5 {[%clk 0:02:58]}  O-O {[%clk 0:02:10]} 7. Nxe7+ {[%clk 0:02:56]}  Qxe7 {[%clk 0:02:11]} 8. c4 {[%clk 0:02:56]}  d6 {[%clk 0:02:05]} 9. Nc3 {[%clk 0:02:54]}  Bf5 {[%clk 0:02:01]} 10. d4 {[%clk 0:02:45]}  exd3 {[%clk 0:01:59]} 11. Bxd3 {[%clk 0:02:45]}  Bxd3 {[%clk 0:01:58]} 12. Qxd3 {[%clk 0:02:43]}  Ne5 {[%clk 0:01:49]} 13. Qd2 {[%clk 0:02:41]}  Ng6 {[%clk 0:01:41]} 14. Qd4 {[%clk 0:02:21]}  Rfe8 {[%clk 0:01:21]} 15. O-O {[%clk 0:02:19]}  Qe5 {[%clk 0:01:18]} 16. Qd3 {[%clk 0:02:17]}  Ng4 {[%clk 0:01:11]} 17. f4 {[%clk 0:01:44]}  Qxe3+ {[%clk 0:01:05]} 18. Qxe3 {[%clk 0:01:43]}  Nxe3 {[%clk 0:01:06]} 19. Rf2 {[%clk 0:01:37]}  Ng4 {[%clk 0:01:02]} 20. Rf3 {[%clk 0:01:33]}  Nf6 {[%clk 0:00:41]} 21. h3 {[%clk 0:01:31]}  c6 {[%clk 0:00:38]} 22. Rd1 {[%clk 0:01:27]}  Rad8 {[%clk 0:00:31]} 23. g3 {[%clk 0:01:23]}  d5 {[%clk 0:00:27]} 24. cxd5 {[%clk 0:01:22]}  Nxd5 {[%clk 0:00:26]} 25. Rfd3 {[%clk 0:01:13]}  Nge7 {[%clk 0:00:18]} 26. Ba3 {[%clk 0:01:12]}  Rd7 {[%clk 0:00:13]} 27. Bxe7 {[%clk 0:01:09]}  Rdxe7 {[%clk 0:00:10]} 28. Nxd5 {[%clk 0:01:09]}  cxd5 {[%clk 0:00:11]} 29. Rxd5 {[%clk 0:01:09]}  Re2 {[%clk 0:00:10]} 30. R5d2 {[%clk 0:01:05]}  g6 {[%clk 0:00:09]} 31. Kf1 {[%clk 0:01:04]}  Rxd2 {[%clk 0:00:08]} 32. Rxd2 {[%clk 0:01:05]}  Re3 {[%clk 0:00:08]} 33. Kf2 {[%clk 0:01:04]}  Rc3 {[%clk 0:00:08]} 34. h4 {[%clk 0:01:03]}  h5 {[%clk 0:00:07]} 35. Rd7 {[%clk 0:01:02]}  Rc2+ {[%clk 0:00:07]} 36. Kf3 {[%clk 0:01:01]}  Rxa2 {[%clk 0:00:07]} 37. Rxb7 {[%clk 0:01:01]}  Ra3 {[%clk 0:00:07]} 38. Ke4 {[%clk 0:01:00]}  a5 {[%clk 0:00:07]} 39. f5 {[%clk 0:01:01]}  a4 {[%clk 0:00:07]} 40. fxg6 {[%clk 0:00:55]}  fxg6 {[%clk 0:00:07]} 41. b4 {[%clk 0:00:52]}  Rxg3 {[%clk 0:00:06]} 42. Ke5 {[%clk 0:00:50]}  Rg4 {[%clk 0:00:05]} 43. Kf6 {[%clk 0:00:50]}  Rxh4 {[%clk 0:00:03]} 44. Rb8+ {[%clk 0:00:48]}  Kh7 {[%clk 0:00:03]} 45. Rb7+ {[%clk 0:00:46]}  Kh6 {[%clk 0:00:04]} 46. b5 {[%clk 0:00:47]}  Rf4+ {[%clk 0:00:03]} 47. Ke5 {[%clk 0:00:47]}  Rb4 {[%clk 0:00:03]} 48. Kd5 {[%clk 0:00:46]}  a3 {[%clk 0:00:03]} 49. Kc5 {[%clk 0:00:47]}  Rb2 {[%clk 0:00:03]} 50. Ra7 {[%clk 0:00:48]}  a2 {[%clk 0:00:03]} 51. b6 {[%clk 0:00:48]}  h4 {[%clk 0:00:02]} 52. Ra8 {[%clk 0:00:49]}  Kg5 {[%clk 0:00:01]} 53. Ra5 {[%clk 0:00:48]}  h3 {[%clk 0:00:01]} 54. Kc6+ {[%clk 0:00:49]}  Kg4 {[%clk 0:00:01]} 55. Rb5 {[%clk 0:00:49]} 1-0


[Site "https://www.chess.com"]

[Event "Titled Tuesday Blitz December 27 Late 2022"]
[White "Graif, William"]
[Black "Rian, Kapriaga"]
[WhiteFideId "2609835"]
[BlackFideId "7103263"]
[WhiteElo "2304"]
[BlackElo "2089"]
[Result "0-1"]
[Round "07"]
[TimeControl "180+2"]
[Date "2022.12.27"]
[WhiteClock "0:00:03"]
[BlackClock "0:01:11"]

1. e4 {[%clk 0:02:42]}  c6 {[%clk 0:02:59]} 2. d4 {[%clk 0:02:41]}  d5 {[%clk 0:02:59]} 3. Nc3 {[%clk 0:02:41]}  dxe4 {[%clk 0:02:59]} 4. Bc4 {[%clk 0:02:42]}  Bf5 {[%clk 0:02:55]} 5. f3 {[%clk 0:02:42]}  Nf6 {[%clk 0:02:48]} 6. g4 {[%clk 0:02:40]}  Bg6 {[%clk 0:02:48]} 7. g5 {[%clk 0:02:37]}  Nd5 {[%clk 0:02:47]} 8. Nxe4 {[%clk 0:02:34]}  e6 {[%clk 0:02:44]} 9. Ne2 {[%clk 0:02:30]}  Nd7 {[%clk 0:02:40]} 10. Bb3 {[%clk 0:02:20]}  Be7 {[%clk 0:02:37]} 11. c4 {[%clk 0:02:17]}  Nc7 {[%clk 0:02:26]} 12. N2c3 {[%clk 0:02:09]}  b5 {[%clk 0:02:25]} 13. cxb5 {[%clk 0:02:02]}  cxb5 {[%clk 0:02:25]} 14. Bf4 {[%clk 0:02:02]}  b4 {[%clk 0:02:22]} 15. Na4 {[%clk 0:01:34]}  O-O {[%clk 0:02:19]} 16. Rc1 {[%clk 0:01:23]}  Nd5 {[%clk 0:02:19]} 17. Bd2 {[%clk 0:01:04]}  f6 {[%clk 0:01:57]} 18. Nec5 {[%clk 0:00:56]}  Nxc5 {[%clk 0:01:55]} 19. Nxc5 {[%clk 0:00:56]}  Bxc5 {[%clk 0:01:54]} 20. Rxc5 {[%clk 0:00:55]}  fxg5 {[%clk 0:01:52]} 21. Qe2 {[%clk 0:00:54]}  Qd6 {[%clk 0:01:42]} 22. Bxg5 {[%clk 0:00:43]}  Rf5 {[%clk 0:01:41]} 23. h4 {[%clk 0:00:39]}  h6 {[%clk 0:01:37]} 24. Be3 {[%clk 0:00:36]}  Bh5 {[%clk 0:01:36]} 25. Rh3 {[%clk 0:00:31]}  Raf8 {[%clk 0:01:36]} 26. Bf2 {[%clk 0:00:14]}  Bxf3 {[%clk 0:01:27]} 27. Qd2 {[%clk 0:00:14]}  Bg4 {[%clk 0:01:23]} 28. Rg3 {[%clk 0:00:05]}  Rxf2 {[%clk 0:01:20]} 29. Qxf2 {[%clk 0:00:03]}  Rxf2 {[%clk 0:01:20]} 30. Kxf2 {[%clk 0:00:04]}  Qf4+ {[%clk 0:01:19]} 31. Kg2 {[%clk 0:00:04]}  Qxd4 {[%clk 0:01:14]} 32. Rc8+ {[%clk 0:00:03]}  Kf7 {[%clk 0:01:11]} 0-1


[Site "https://www.chess.com"]

[Event "Titled Tuesday Blitz December 27 Late 2022"]
[White "Gubajdullin, Alexei"]
[Black "Vasquez Schroeder, Rodrigo"]
[WhiteFideId "4141202"]
[BlackFideId "3400042"]
[WhiteElo "2285"]
[BlackElo "2524"]
[Result "1/2-1/2"]
[Round "07"]
[TimeControl "180+2"]
[Date "2022.12.27"]
[WhiteClock "0:01:28"]
[BlackClock "0:01:33"]

1. d4 {[%clk 0:03:00]}  Nf6 {[%clk 0:02:59]} 2. Nf3 {[%clk 0:02:59]}  e6 {[%clk 0:02:59]} 3. Bf4 {[%clk 0:02:59]}  b6 {[%clk 0:02:58]} 4. e3 {[%clk 0:02:58]}  Bb7 {[%clk 0:02:59]} 5. Be2 {[%clk 0:02:58]}  g6 {[%clk 0:02:59]} 6. h3 {[%clk 0:02:57]}  Bg7 {[%clk 0:02:59]} 7. O-O {[%clk 0:02:56]}  O-O {[%clk 0:03:00]} 8. a4 {[%clk 0:02:56]}  a5 {[%clk 0:02:59]} 9. Nc3 {[%clk 0:02:56]}  d6 {[%clk 0:02:55]} 10. Bh2 {[%clk 0:02:55]}  Nbd7 {[%clk 0:02:53]} 11. Nd2 {[%clk 0:02:54]}  Re8 {[%clk 0:02:48]} 12. Bf3 {[%clk 0:02:53]}  Qc8 {[%clk 0:02:48]} 13. Bxb7 {[%clk 0:02:52]}  Qxb7 {[%clk 0:02:49]} 14. Qf3 {[%clk 0:02:52]}  d5 {[%clk 0:02:48]} 15. Nb5 {[%clk 0:02:51]}  Rac8 {[%clk 0:02:41]} 16. c4 {[%clk 0:02:49]}  Nb8 {[%clk 0:02:39]} 17. Rfc1 {[%clk 0:02:47]}  Na6 {[%clk 0:02:39]} 18. cxd5 {[%clk 0:02:33]}  Nxd5 {[%clk 0:02:33]} 19. Ne4 {[%clk 0:02:27]}  Red8 {[%clk 0:02:27]} 20. h4 {[%clk 0:02:26]}  h5 {[%clk 0:02:13]} 21. Ng5 {[%clk 0:02:24]}  Rd7 {[%clk 0:02:10]} 22. Rc4 {[%clk 0:02:17]}  Nab4 {[%clk 0:02:03]} 23. Rac1 {[%clk 0:02:15]}  Nd3 {[%clk 0:02:03]} 24. Rb1 {[%clk 0:01:39]}  N3b4 {[%clk 0:01:45]} 25. Rbc1 {[%clk 0:01:35]}  Na2 {[%clk 0:01:34]} 26. Ra1 {[%clk 0:01:29]}  Nab4 {[%clk 0:01:33]} 27. Rac1 {[%clk 0:01:28]} 1/2-1/2


[Site "https://www.chess.com"]

[Event "Titled Tuesday Blitz December 27 Late 2022"]
[White "Ibadov, Dashgyn"]
[Black "Sargsyan, Anna M."]
[WhiteFideId "24107514"]
[BlackFideId "13308130"]
[WhiteElo "2391"]
[BlackElo "2375"]
[Result "0-1"]
[Round "07"]
[TimeControl "180+2"]
[Date "2022.12.27"]
[WhiteClock "0:00:04"]
[BlackClock "0:00:06"]

1. e4 {[%clk 0:03:00]}  c6 {[%clk 0:02:59]} 2. d4 {[%clk 0:02:59]}  d5 {[%clk 0:03:00]} 3. e5 {[%clk 0:02:58]}  Bf5 {[%clk 0:02:59]} 4. Nf3 {[%clk 0:02:59]}  e6 {[%clk 0:02:59]} 5. Be2 {[%clk 0:02:59]}  Nd7 {[%clk 0:02:59]} 6. O-O {[%clk 0:02:58]}  h6 {[%clk 0:02:59]} 7. a4 {[%clk 0:02:55]}  Ne7 {[%clk 0:02:59]} 8. a5 {[%clk 0:02:46]}  Qc7 {[%clk 0:02:57]} 9. b4 {[%clk 0:02:43]}  a6 {[%clk 0:02:56]} 10. c3 {[%clk 0:02:42]}  g5 {[%clk 0:02:55]} 11. Ne1 {[%clk 0:02:41]}  Bg7 {[%clk 0:02:53]} 12. f4 {[%clk 0:02:39]}  O-O-O {[%clk 0:02:51]} 13. fxg5 {[%clk 0:02:28]}  hxg5 {[%clk 0:02:52]} 14. Bxg5 {[%clk 0:02:07]}  f6 {[%clk 0:02:52]} 15. Bf4 {[%clk 0:02:08]}  fxe5 {[%clk 0:02:52]} 16. dxe5 {[%clk 0:02:08]}  Bxe5 {[%clk 0:02:52]} 17. Qc1 {[%clk 0:01:55]}  Ng6 {[%clk 0:02:50]} 18. Bxe5 {[%clk 0:01:54]}  Ndxe5 {[%clk 0:02:50]} 19. g3 {[%clk 0:01:48]}  Rdg8 {[%clk 0:02:47]} 20. Nf3 {[%clk 0:01:47]}  Be4 {[%clk 0:02:40]} 21. Nbd2 {[%clk 0:01:42]}  Nxf3+ {[%clk 0:02:22]} 22. Nxf3 {[%clk 0:01:39]}  Nh4 {[%clk 0:02:16]} 23. Nxh4 {[%clk 0:01:26]}  Rxh4 {[%clk 0:01:37]} 24. Qe3 {[%clk 0:01:25]}  Rh3 {[%clk 0:01:17]} 25. Rf4 {[%clk 0:01:22]}  Qh7 {[%clk 0:01:13]} 26. Raf1 {[%clk 0:00:33]}  Rxh2 {[%clk 0:00:57]} 27. Rf8+ {[%clk 0:00:33]}  Rxf8 {[%clk 0:00:57]} 28. Rxf8+ {[%clk 0:00:33]}  Kd7 {[%clk 0:00:58]} 29. Rf7+ {[%clk 0:00:34]}  Qxf7 {[%clk 0:00:57]} 30. Kxh2 {[%clk 0:00:35]}  Qf5 {[%clk 0:00:15]} 31. Kg1 {[%clk 0:00:29]}  e5 {[%clk 0:00:12]} 32. Qh6 {[%clk 0:00:17]}  Qh7 {[%clk 0:00:09]} 33. Qg5 {[%clk 0:00:07]}  Qe7 {[%clk 0:00:04]} 34. Bg4+ {[%clk 0:00:06]}  Kd6 {[%clk 0:00:04]} 35. Qh6+ {[%clk 0:00:05]}  Kc7 {[%clk 0:00:05]} 36. Kh2 {[%clk 0:00:03]}  Qh7 {[%clk 0:00:04]} 37. Qxh7+ {[%clk 0:00:02]}  Bxh7 {[%clk 0:00:05]} 38. Be2 {[%clk 0:00:01]}  d4 {[%clk 0:00:05]} 39. cxd4 {[%clk 0:00:01]}  exd4 {[%clk 0:00:06]} 40. g4 {[%clk 0:00:01]}  Bc2 {[%clk 0:00:07]} 41. Kg3 {[%clk 0:00:01]}  d3 {[%clk 0:00:07]} 42. Bxd3 {[%clk 0:00:01]}  Bxd3 {[%clk 0:00:07]} 43. Kf4 {[%clk 0:00:02]}  Kd6 {[%clk 0:00:07]} 44. Ke3 {[%clk 0:00:02]}  Bg6 {[%clk 0:00:08]} 45. Kd4 {[%clk 0:00:03]}  Bf7 {[%clk 0:00:07]} 46. g5 {[%clk 0:00:04]}  Bg6 {[%clk 0:00:06]} 0-1


[Site "https://www.chess.com"]

[Event "Titled Tuesday Blitz December 27 Late 2022"]
[White "Janaszak, Dawid"]
[Black "Steinberg, Nitzan"]
[WhiteFideId "1119206"]
[BlackFideId "2801795"]
[WhiteElo "2316"]
[BlackElo "2546"]
[Result "1-0"]
[Round "07"]
[TimeControl "180+2"]
[Date "2022.12.27"]
[WhiteClock "0:00:05"]
[BlackClock "0:01:12"]

1. e4 {[%clk 0:02:56]}  c5 {[%clk 0:02:58]} 2. Nc3 {[%clk 0:02:55]}  e6 {[%clk 0:02:58]} 3. d4 {[%clk 0:02:54]}  cxd4 {[%clk 0:02:57]} 4. Qxd4 {[%clk 0:02:55]}  Nc6 {[%clk 0:02:58]} 5. Qe3 {[%clk 0:02:55]}  a6 {[%clk 0:02:58]} 6. Bd2 {[%clk 0:02:53]}  b5 {[%clk 0:02:59]} 7. O-O-O {[%clk 0:02:53]}  Bb7 {[%clk 0:02:59]} 8. Kb1 {[%clk 0:02:48]}  Rc8 {[%clk 0:02:59]} 9. f4 {[%clk 0:02:47]}  d6 {[%clk 0:02:54]} 10. Nf3 {[%clk 0:02:46]}  Be7 {[%clk 0:02:52]} 11. g4 {[%clk 0:02:42]}  Nf6 {[%clk 0:02:50]} 12. g5 {[%clk 0:02:39]}  Nd7 {[%clk 0:02:47]} 13. h4 {[%clk 0:02:33]}  b4 {[%clk 0:02:47]} 14. Na4 {[%clk 0:02:27]}  Qa5 {[%clk 0:02:45]} 15. b3 {[%clk 0:02:27]}  Nc5 {[%clk 0:02:46]} 16. Nxc5 {[%clk 0:02:23]}  dxc5 {[%clk 0:02:47]} 17. f5 {[%clk 0:02:16]}  e5 {[%clk 0:02:32]} 18. f6 {[%clk 0:02:05]}  gxf6 {[%clk 0:02:30]} 19. gxf6 {[%clk 0:02:04]}  Bxf6 {[%clk 0:02:31]} 20. Qh6 {[%clk 0:02:00]}  Be7 {[%clk 0:02:22]} 21. Qg7 {[%clk 0:01:54]}  Rf8 {[%clk 0:02:22]} 22. Bc4 {[%clk 0:01:41]}  Nd4 {[%clk 0:02:21]} 23. Nxe5 {[%clk 0:01:35]}  Bxe4 {[%clk 0:02:22]} 24. Rc1 {[%clk 0:00:43]}  Nxc2 {[%clk 0:01:56]} 25. Rxc2 {[%clk 0:00:35]}  Bxc2+ {[%clk 0:01:55]} 26. Ka1 {[%clk 0:00:16]}  Qb6 {[%clk 0:01:55]} 27. Bxf7+ {[%clk 0:00:10]}  Kd8 {[%clk 0:01:55]} 28. Bg5 {[%clk 0:00:08]}  Bxg5 {[%clk 0:01:41]} 29. Qxg5+ {[%clk 0:00:08]}  Kc7 {[%clk 0:01:34]} 30. Qe7+ {[%clk 0:00:08]}  Kb8 {[%clk 0:01:34]} 31. Nd7+ {[%clk 0:00:09]}  Ka7 {[%clk 0:01:33]} 32. Nxb6+ {[%clk 0:00:09]}  Kxb6 {[%clk 0:01:34]} 33. Qd6+ {[%clk 0:00:08]}  Ka5 {[%clk 0:01:29]} 34. Bc4 {[%clk 0:00:07]}  Rf5 {[%clk 0:01:19]} 35. Re1 {[%clk 0:00:05]}  Rf6 {[%clk 0:01:12]} 36. Qxf6 {[%clk 0:00:05]}  Rc6 {[%clk 0:01:12]} 37. Qxc6 {[%clk 0:00:05]} 1-0


[Site "https://www.chess.com"]

[Event "Titled Tuesday Blitz December 27 Late 2022"]
[White "Jones, Gawain C B"]
[Black "Martinez Ramirez, Lennis"]
[WhiteFideId "409561"]
[BlackFideId "3509079"]
[WhiteElo "2618"]
[BlackElo "2426"]
[Result "0-1"]
[Round "07"]
[TimeControl "180+2"]
[Date "2022.12.27"]
[WhiteClock "0:00:17"]
[BlackClock "0:00:22"]

1. d4 {[%clk 0:03:00]}  Nf6 {[%clk 0:02:57]} 2. Nf3 {[%clk 0:03:00]}  d5 {[%clk 0:02:57]} 3. c4 {[%clk 0:02:59]}  e6 {[%clk 0:02:57]} 4. e3 {[%clk 0:02:58]}  a6 {[%clk 0:02:56]} 5. b3 {[%clk 0:02:57]}  c5 {[%clk 0:02:53]} 6. Bb2 {[%clk 0:02:57]}  cxd4 {[%clk 0:02:53]} 7. Nxd4 {[%clk 0:02:56]}  Bb4+ {[%clk 0:02:50]} 8. Bc3 {[%clk 0:02:54]}  Qa5 {[%clk 0:02:43]} 9. Bxb4 {[%clk 0:02:52]}  Qxb4+ {[%clk 0:02:44]} 10. Qd2 {[%clk 0:02:52]}  Qxd2+ {[%clk 0:02:42]} 11. Nxd2 {[%clk 0:02:53]}  e5 {[%clk 0:02:42]} 12. N4f3 {[%clk 0:02:52]}  Nc6 {[%clk 0:02:41]} 13. cxd5 {[%clk 0:02:52]}  Nxd5 {[%clk 0:02:42]} 14. Nc4 {[%clk 0:02:51]}  f6 {[%clk 0:02:41]} 15. O-O-O {[%clk 0:02:50]}  Be6 {[%clk 0:02:18]} 16. Nd6+ {[%clk 0:02:48]}  Ke7 {[%clk 0:02:18]} 17. Bc4 {[%clk 0:02:37]}  Kxd6 {[%clk 0:02:02]} 18. e4 {[%clk 0:02:38]}  Bf7 {[%clk 0:01:34]} 19. Bxd5 {[%clk 0:02:36]}  Bxd5 {[%clk 0:01:34]} 20. Rxd5+ {[%clk 0:02:36]}  Ke7 {[%clk 0:01:30]} 21. Rhd1 {[%clk 0:02:35]}  Rhd8 {[%clk 0:01:29]} 22. Kb2 {[%clk 0:02:30]}  Rac8 {[%clk 0:01:25]} 23. Rxd8 {[%clk 0:02:26]}  Nxd8 {[%clk 0:01:26]} 24. Nd2 {[%clk 0:02:21]}  b5 {[%clk 0:01:24]} 25. Nf1 {[%clk 0:02:21]}  Ne6 {[%clk 0:01:20]} 26. Ne3 {[%clk 0:02:21]}  Nd4 {[%clk 0:01:20]} 27. f4 {[%clk 0:02:16]}  g6 {[%clk 0:01:09]} 28. Rd2 {[%clk 0:02:04]}  Ke6 {[%clk 0:01:08]} 29. g3 {[%clk 0:01:59]}  h5 {[%clk 0:01:06]} 30. Nd5 {[%clk 0:01:50]}  a5 {[%clk 0:00:56]} 31. fxe5 {[%clk 0:01:45]}  Kxe5 {[%clk 0:00:48]} 32. Nxf6 {[%clk 0:01:45]}  Nf3 {[%clk 0:00:41]} 33. Rf2 {[%clk 0:01:32]}  Ne1 {[%clk 0:00:40]} 34. Nd7+ {[%clk 0:01:29]}  Kd4 {[%clk 0:00:39]} 35. Rf1 {[%clk 0:01:18]}  Nd3+ {[%clk 0:00:33]} 36. Ka3 {[%clk 0:01:12]}  Rc2 {[%clk 0:00:32]} 37. e5 {[%clk 0:01:02]}  Nc1 {[%clk 0:00:28]} 38. Rd1+ {[%clk 0:00:52]}  Kc3 {[%clk 0:00:23]} 39. Rxc1 {[%clk 0:00:48]}  Rxc1 {[%clk 0:00:24]} 40. Nf8 {[%clk 0:00:37]}  Rd1 {[%clk 0:00:23]} 41. Ne6 {[%clk 0:00:24]}  Re1 {[%clk 0:00:22]} 42. Nf4 {[%clk 0:00:21]}  Rxe5 {[%clk 0:00:22]} 43. Nxg6 {[%clk 0:00:20]}  Re2 {[%clk 0:00:22]} 44. Nf4 {[%clk 0:00:19]}  Rxh2 {[%clk 0:00:21]} 45. Nd5+ {[%clk 0:00:18]}  Kd4 {[%clk 0:00:21]} 46. Nc7 {[%clk 0:00:18]}  Kc5 {[%clk 0:00:21]} 47. Ne6+ {[%clk 0:00:18]}  Kb6 {[%clk 0:00:21]} 48. Nf4 {[%clk 0:00:18]}  b4+ {[%clk 0:00:21]} 49. Ka4 {[%clk 0:00:17]}  Rxa2# {[%clk 0:00:22]} 0-1


[Site "https://www.chess.com"]